Workbook

Sheet Lease Calculations
A1: NNN LEASE - 10 YEAR
A2: Year # | B2: Building SF | C2: Annual Base Rent Per SF | D2: Monthly Rent | E2: Annual Rent
A3: Year 1 | B3: 56178 | C3: =B16 -> 20 | D3: =(B3*C3)/12 -> 93630 | E3: =(D3*12)-(D3*3) -> 842670
A4: Year 2 | B4: 56178 | C4: =C3*B17 -> 20.6 | D4: =(B4*C4)/12 -> 96438.9 | E4: =D4*12 -> 1157266.8
A5: Year 3 | B5: 56178 | C5: =C4*B17 -> 21.218 | D5: =(B5*C5)/12 -> 99332.067 | E5: 1191984.804
A6: Year 4 | B6: 56178 | C6: =C5*B17 -> 21.85454 | D6: 102312.029 | E6: 1227744.348
A7: Year 5 | B7: 56178 | C7: =C6*B17 -> 22.5101762 | D7: 105381.3899 | E7: 1264576.679
A8: Year 6 | B8: 56178 | C8: =C7*B17 -> 23.18548149 | D8: 108542.8316 | E8: 1302513.979
A9: Year 7 | B9: 56178 | C9: =C8*B17 -> 23.88104593 | D9: 111799.1165 | E9: 1341589.398
A10: Year 8 | B10: 56178 | C10: =C9*B17 -> 24.59747731 | D10: 115153.09 | E10: 1381837.08
A11: Year 9 | B11: 56178 | C11: =C10*B17 -> 25.33540163 | D11: 118607.6827 | E11: 1423292.193
A12: Year 10 | B12: 56178 | C12: =C11*B17 -> 26.09546368 | D12: 122165.9132 | E12: 1465990.958
D13: Total | E13: =SUM(E3:E12) -> 12599466.24
A16: Total Rent $ per SF | B16: 20
A17: Annual Rent Increase (3%) | B17: 1.03
A19: NNN Terms:
A20: 1. The tenant pays those operating expenses on top of the base rent. Operating expenses include line items related to utilities, building insurance, maintenance costs, and property taxes.
A21: 2. Two Months Deposit
A22: 3. 3 Months Free Rent
A23: 4. Lease Guaranteed for the 10 years
A26: DISCLAIMER: While the information is deemed reliable, no warranty is expressed or implied.
A27: Any information important to you or another party should be independently confirmed
A28: within an applicable due diligence period.

Sheet Pro Forma
B1: Year 1 | C1: Year 2 | D1: Year 3 | E1: Year 4 | F1: Year 5 | G1: Year 6 | H1: Year 7 | I1: Year 8 | J1: Year 9 | K1: Year 10
A2: Potential Rental Income ($500 ADR and 84 Beds) | B2: 15330000 | C2: =B2*B20 -> 15789900 | D2: =C2*B20 -> 16263597 | E2: =D2*B20 -> 16751504.91 | F2: =E2*B20 -> 17254050.06 | G2: =F2*B20 -> 17771671.56 | H2: =G2*B20 -> 18304821.71 | I2: =H2*B20 -> 18853966.36 | J2: =I2*B20 -> 19419585.35 | K2: =J2*B20 -> 20002172.91
A4: Occupancy | B4: 0.35 | C4: 0.65 | D4: 0.8 | E4: 0.8 | F4: 0.8 | G4: 0.8 | H4: 0.8 | I4: 0.8 | J4: 0.8 | K4: 0.8
A6: Gross Operating Income | B6: =B2*B4 -> 5365500 | C6: =C2*C4 -> 10263435 | D6: 13010877.6 | E6: 13401203.93 | F6: 13803240.05 | G6: 14217337.25 | H6: 14643857.36 | I6: 15083173.09 | J6: 15535668.28 | K6: 16001738.33
A8: Expenses at 80% | B8: =B6*0.8 -> 4292400 | C8: =C6*0.8 -> 8210748 | D8: 10408702.08 | E8: 10720963.14 | F8: 11042592.04 | G8: 11373869.8 | H8: 11715085.89 | I8: 12066538.47 | J8: 12428534.62 | K8: 12801390.66
A10: NOI | B10: =B6-B8 -> 1073100 | C10: =C6-C8 -> 2052687 | D10: 2602175.52 | E10: 2680240.786 | F10: 2760648.009 | G10: 2843467.449 | H10: 2928771.473 | I10: 3016634.617 | J10: 3107133.656 | K10: 3200347.665
A12: Annual Lease Service growing 3% | B12: ='Lease Calculations '!E3 -> 842670 | C12: ='Lease Calculations '!E4 -> 1157266.8 | D12: ='Lease Calculations '!E5 -> 1191984.804 | E12: ='Lease Calculations '!E6 -> 1227744.348 | F12: ='Lease Calculations '!E7 -> 1264576.679 | G12: ='Lease Calculations '!E8 -> 1302513.979 | H12: ='Lease Calculations '!E9 -> 1341589.398 | I12: ='Lease Calculations '!E10 -> 1381837.08 | J12: ='Lease Calculations '!E11 -> 1423292.193 | K12: ='Lease Calculations '!E12 -> 1465990.958
A14: Cashflow | B14: =B10-B12 -> 230430 | C14: =C10-C12 -> 895420.2 | D14: 1410190.716 | E14: 1452496.437 | F14: 1496071.331 | G14: 1540953.471 | H14: 1587182.075 | I14: 1634797.537 | J14: 1683841.463 | K14: 1734356.707
A16: % Occupancy | Break Even | B16: =(B8+B12)/B2 -> 0.3349686888
A18: Sales Price@ 10% CAP | B18: =B10/0.1 -> 10731000 | C18: 20526870 | D18: =D10/0.1 -> 26021755.2 | E18: =E10/0.1 -> 26802407.86 | F18: 27606480.09 | G18: 28434674.49 | H18: 29287714.73 | I18: 30166346.17 | J18: 31071336.56 | K18: 32003476.65
A20: Revenue increase per year | B20: 1.03
